bitfinex/quotes_SOLUSD_20220216
["timestamp","ask_amount","ask_price","bid_price","bid_amount"]
[1644999235394,39.43488976,103.96,103.9,14.4354]
[1644999246616,39.43488976,103.96,103.9,111.9054]
[1644999246813,15.79068976,103.97,103.9,114.0469365]
[1644999247013,15.79068976,103.97,103.9,16.8269365]
[1644999247414,15.79068976,103.97,103.9,40.1602365]
[1644999250819,15.79068976,103.97,103.91,6.0]
[1644999251020,15.79068976,103.97,103.92,14.4305]
[1644999252423,1.35958976,103.97,103.92,14.4305]
[1644999253022,15.78978976,103.98,103.92,14.4305]
[1644999258231,14.4302,103.98,103.92,14.4305]
[1644999258828,15.78978976,103.98,103.92,14.4305]
[1644999259732,14.4302,103.98,103.92,14.4305]
[1644999263853,62.67218976,103.99,103.92,14.4305]
[1644999264056,62.67218976,103.99,103.92,37.0956]
[1644999265361,1.35958976,103.99,103.92,136.7071365]
[1644999265559,2.42053255,104.04,103.92,150.7971365]
[1644999265560,1.35958976,104.0,103.92,150.7971365]
[1644999265757,1.35958976,104.01,103.92,150.7971365]
[1644999265957,1.35958976,104.01,103.92,165.41568582]
[1644999266158,1.35958976,104.01,103.92,181.26881619]
[1644999266363,1.35958976,104.01,103.92,190.03414615]
[1644999267365,1.35958976,104.01,103.92,181.26881619]
[1644999268165,1.35958976,104.02,103.92,181.26881619]
[1644999270165,24.05928976,104.02,103.92,181.26881619]
[1644999275972,24.05928976,104.02,103.92,83.54881619]
[1644999276172,135.95538976,104.02,103.92,16.5720365]
[1644999276370,1.35958976,104.0,103.92,14.4305]
[1644999276578,1.35958976,103.99,103.92,14.4305]
[1644999277273,1.35958976,104.0,103.92,14.4305]
[1644999277473,1.35958976,104.0,103.92,136.3855]
[1644999277671,1.35958976,104.01,103.92,138.5270365]
[1644999277874,24.05928976,104.02,103.92,152.3670365]
[1644999278171,24.05928976,104.02,103.92,152.6170365]
[1644999278970,38.48378976,104.02,103.92,168.47016687]
[1644999279175,1.35958976,104.01,103.92,71.00016687]
[1644999279370,1.35958976,104.01,103.92,55.1470365]
[1644999281071,15.78548976,104.01,103.92,55.1470365]
[1644999281475,24.8491,104.0,103.92,55.1470365]
[1644999281874,39.2758,104.0,103.95,14.4267]
[1644999282271,24.8491,104.0,103.95,14.4267]
[1644999289410,39.276,104.0,103.95,14.4267]
[1644999289910,40.63558976,104.0,103.95,14.4267]
[1644999290312,1.35958976,103.99,103.92,74.7206365]
[1644999290510,1.35958976,103.99,103.94,14.4295]
[1644999291911,15.78908976,103.99,103.94,14.4295]
[1644999294019,15.78908976,103.99,103.93,14.4307]
[1644999297825,1.35958976,103.99,103.93,16.57671226]
[1644999298027,26.20868976,104.0,103.93,16.57671226]
[1644999300130,40.63548976,104.0,103.93,16.57671226]
[1644999300531,40.63548976,104.0,103.93,31.00171226]
[1644999301232,26.20868976,104.0,103.93,31.00171226]
[1644999302432,26.20868976,104.0,103.93,128.47171226]
[1644999303540,24.8491,104.0,103.93,142.56171226]
[1644999305240,2.71758862,104.04,103.96,177.47]
[1644999305441,1.36519047,104.03,103.98,111.8897]
[1644999305639,1.36491942,104.05,104.0,97.47]
[1644999305838,1.36491942,104.07,104.0,117.906]
[1644999306062,1.36491942,104.08,104.02,97.47]
[1644999306263,1.36491942,104.09,104.01,25.12661226]
[1644999306461,1.36491942,104.09,104.02,2.14601226]
[1644999306660,1.36491942,104.09,104.04,14.4127]
[1644999306862,1.36491942,104.1,104.04,14.4127]
[1644999307061,1.36491942,104.1,104.04,16.55871226]
[1644999307661,1.36491942,104.11,104.04,16.55871226]
[1644999308462,1.36491942,104.12,104.04,14.4127]
[1644999308662,1.36491942,104.11,104.04,14.4127]
[1644999308862,15.77981942,104.11,104.04,14.4127]
[1644999309363,113.24981942,104.11,104.0,2.14601226]
[1644999309563,1.36491942,104.1,104.0,2.14601226]
[1644999309766,1.36491942,104.09,103.99,48.0589]
[1644999309964,15.78171942,104.09,104.0,24.0837]
[1644999310167,15.78171942,104.09,104.0,26.22971226]
[1644999310367,14.4168,104.09,104.0,26.22971226]
[1644999310568,22.8005,104.08,104.01,14.4189]
[1644999311966,37.2191,104.08,104.01,14.4189]
[1644999314068,37.2191,104.08,104.01,16.56491226]
[1644999314870,22.8005,104.08,104.01,114.03491226]
[1644999315073,22.8005,104.08,104.01,16.81491226]
[1644999315971,22.8005,104.08,104.03,14.4153]
[1644999316371,22.8005,104.08,104.03,16.56131226]
[1644999324279,37.5096,104.11,104.03,16.56131226]
[1644999324481,24.3689,104.1,104.05,14.4134]
[1644999328086,38.7842,104.1,104.04,14.4153]
[1644999328887,40.14911942,104.1,104.03,2.14601226]
[1644999329086,40.14911942,104.1,104.02,2.14601226]
[1644999329990,40.14911942,104.1,104.02,16.56301226]
[1644999330896,1.36491942,104.09,104.02,16.56301226]
[1644999331092,14.4174,104.08,104.02,16.56301226]
[1644999332492,14.4174,104.08,104.01,37.3423]
[1644999332694,14.4174,104.08,104.01,14.4197]
[1644999333295,1.36491942,104.06,104.01,14.4197]
[1644999333892,1.36491942,104.06,104.0,16.56701226]
[1644999334295,1.36491942,104.05,104.0,16.56701226]
[1644999334594,1.36491942,104.06,104.0,16.56701226]
[1644999335294,15.78541942,104.06,104.0,16.56701226]
[1644999337098,1.36491942,104.06,104.0,16.56701226]
[1644999337305,1.36491942,104.07,104.0,16.81701226]
[1644999337898,26.19921942,104.08,104.0,16.81701226]
[1644999338099,26.19921942,104.08,104.0,114.28701226]
[1644999338302,26.19921942,104.08,104.0,16.81701226]
[1644999338803,26.19921942,104.08,104.0,114.28701226]
[1644999339002,1.36491942,104.08,104.0,135.19201226]
[1644999339205,1.36491942,104.08,104.0,149.81056158]
[1644999339402,1.36491942,104.09,104.0,180.39259195]
[1644999342641,1.36491942,104.1,104.0,180.39259195]
[1644999342837,1.36491942,104.1,104.01,120.5531]
[1644999343039,1.36491942,104.1,104.03,14.4128]
[1644999343467,1.36491942,104.1,104.04,2.14601226]
[1644999344747,1.36491942,104.1,104.05,14.4128]
[1644999344946,1.36491942,104.1,104.06,97.47]
[1644999345144,1.36491942,104.12,104.06,15.98601226]
[1644999345346,1.36491942,104.12,104.07,2.14601226]
[1644999345544,22.6747,104.13,104.07,2.14601226]
[1644999345744,24.03961942,104.13,104.07,14.4077]
[1644999345944,1.36491942,104.13,104.07,14.4077]
[1644999346249,1.36491942,104.14,104.07,14.4077]
[1644999347547,1.36491942,104.14,104.07,111.8777]
[1644999347752,1.36491942,104.14,104.07,114.27371226]
[1644999347947,1.36491942,104.15,104.07,128.11371226]
[1644999348146,1.36491942,104.15,104.07,152.20191226]
[1644999349253,1.36491942,104.15,104.07,166.82046158]
[1644999349449,1.36491942,104.16,104.07,192.04088446]
[1644999349656,1.942e-05,104.17,104.07,211.71018446]
[1644999349953,2.88129198,104.22,104.11,102.47]
[1644999350152,0.16370336,104.22,104.13,97.47]
[1644999350352,0.16370336,104.22,104.15,97.47]
[1644999350551,0.16370336,104.22,104.17,97.47]
[1644999350859,0.16370336,104.22,104.18,111.8597]
[1644999351057,0.16370336,104.22,104.19,13.84]
[1644999351257,0.16370336,104.22,104.2,0.65868651]
[1644999351452,0.16370336,104.22,104.2,14.49868651]
[1644999351655,0.16370336,104.22,104.2,16.64469877]
[1644999351862,0.16370336,104.22,104.2,15.04398651]
[1644999352057,0.16370336,104.22,104.2,0.65868651]
[1644999352255,0.16370336,104.22,104.14,37.3677]
[1644999352456,0.16370336,104.22,104.16,2.14601226]
[1644999353255,0.16370336,104.22,104.16,16.54061226]
[1644999353454,0.16370336,104.22,104.17,13.84]
[1644999353657,0.16370336,104.22,104.17,15.98601226]
[1644999354557,0.16370336,104.22,104.18,14.3915]
[1644999357261,0.16370336,104.22,104.18,16.53751226]
[1644999358678,0.16370336,104.22,104.18,14.3915]
[1644999358878,0.16370336,104.22,104.16,16.54121226]
[1644999359078,0.16370336,104.22,104.14,2.14601226]
[1644999359478,5.40070336,104.22,104.14,2.14601226]
[1644999360280,5.40070336,104.22,104.14,16.54391226]
[1644999360882,0.16370336,104.22,104.14,16.54391226]
[1644999361482,0.16370336,104.22,104.14,14.3979]
[1644999362883,0.16370336,104.22,104.13,121.2531]
[1644999362884,0.16370336,104.22,104.2,4.3620814]
[1644999363185,2.37351345,104.21,104.2,4.3620814]
[1644999364285,80.36,104.2,104.14,14.3981]
[1644999364487,80.36,104.2,104.09,22.8214]
[1644999364685,4.36,104.2,104.1,50.14921226]
[1644999364888,14.00370336,104.22,104.1,50.14921226]
[1644999365686,111.47370336,104.22,104.1,50.14921226]
[1644999365887,14.4026,104.2,104.12,14.401]
[1644999366088,13.4026,104.2,104.12,14.401]
[1644999366487,13.4026,104.2,104.1,2.14601226]
[1644999367892,13.4026,104.2,104.1,16.54971226]
[1644999368092,27.2426,104.2,104.1,16.54971226]
[1644999368889,27.2426,104.2,104.1,16.79971226]
[1644999370993,97.47,104.19,104.1,16.54971226]
[1644999371197,14.4064,104.17,104.08,16.55321226]
[1644999371395,14.4064,104.17,104.08,14.4072]
[1644999372793,14.4064,104.17,104.08,16.55321226]
[1644999373195,74.8769,104.19,104.08,16.80321226]
[1644999373395,74.8769,104.19,104.08,21.15556936]
[1644999373994,74.8769,104.19,104.08,118.62556936]
[1644999374196,74.8769,104.19,104.08,21.15556936]
[1644999374395,74.8769,104.19,104.08,20.90556936]
[1644999374597,74.8769,104.19,104.08,21.15556936]
[1644999376400,74.8769,104.19,104.08,118.62556936]
[1644999376800,46.6327,104.19,104.08,118.62556936]
[1644999377001,46.6327,104.19,104.08,172.86637325]
[1644999377224,46.6327,104.19,104.1,97.47]
[1644999377504,46.6327,104.19,104.12,14.4007]
[1644999377902,46.6327,104.19,104.13,2.14601226]
[1644999379105,46.6327,104.19,104.14,14.3996]
[1644999379308,0.16370336,104.22,104.14,14.3996]
[1644999379507,0.16370336,104.22,104.15,2.14601226]
[1644999380407,0.16370336,104.22,104.16,14.3964]
[1644999380707,0.16370336,104.22,104.13,2.14601226]
[1644999381508,0.16370336,104.22,104.16,8.7313552]
[1644999381708,14.56270336,104.22,104.16,8.7313552]
[1644999383310,0.16370336,104.22,104.16,10.87736746]
[1644999383709,0.16370336,104.22,104.16,8.7313552]
[1644999383910,0.16370336,104.22,104.16,23.1282552]
[1644999389240,0.16370336,104.22,104.16,8.7313552]
[1644999390341,14.56270336,104.22,104.16,8.7313552]
[1644999390544,17.28029198,104.22,104.16,8.7313552]
[1644999391143,14.56270336,104.22,104.16,8.7313552]
[1644999392846,17.28029198,104.22,104.16,8.7313552]
[1644999394146,14.56270336,104.22,104.16,23.1287552]
[1644999394746,14.56270336,104.22,104.16,8.7313552]
[1644999396246,0.16370336,104.22,104.16,8.7313552]
[1644999397946,0.16370336,104.22,104.16,23.1289552]
[1644999402451,0.16370336,104.22,104.2,4.3523571]
[1644999402650,2.37351345,104.21,104.2,4.3523571]
[1644999402851,2.37351345,104.21,104.2,8.7313552]
[1644999407054,0.16370336,104.22,104.2,8.82160403]
[1644999410863,2.37351345,104.21,104.2,8.82160403]
[1644999411066,14.56150336,104.22,104.2,8.7313552]
[1644999412062,2.37351345,104.21,104.2,8.7313552]
[1644999412464,16.77231345,104.21,104.2,8.7313552]
[1644999417768,2.37351345,104.21,104.2,8.7313552]
[1644999420470,16.77211345,104.21,104.2,8.7313552]
[1644999422174,19.48970207,104.21,104.2,8.7313552]
[1644999422573,16.77211345,104.21,104.2,8.7313552]
[1644999422776,19.48970207,104.21,104.2,8.7313552]
[1644999422975,16.77211345,104.21,104.2,8.7313552]
[1644999423175,119.6846953,104.21,104.13,37.2476]
[1644999423376,119.38023462,104.21,104.13,22.8455]
[1644999423777,133.22023462,104.21,104.13,22.8455]
[1644999423976,156.86933462,104.21,104.13,22.8455]
[1644999424173,59.39933462,104.21,104.13,22.8455]
[1644999424375,56.97880207,104.21,104.13,22.8455]
[1644999425674,56.97880207,104.21,104.13,46.2945]
[1644999431184,56.97880207,104.21,104.13,60.697]
[1644999432587,43.13880207,104.21,104.13,60.697]
[1644999432787,40.42121345,104.21,104.13,60.697]
[1644999436790,43.13880207,104.21,104.13,60.697]
[1644999437589,40.42121345,104.21,104.13,60.697]
[1644999438891,16.77211345,104.21,104.13,160.31367811]
[1644999439092,0.16370336,104.22,104.13,168.48667811]
[1644999439295,0.16370336,104.22,104.13,196.94522743]
[1644999439492,0.16370336,104.22,104.13,222.69684427]
[1644999439690,0.16370336,104.22,104.17,14.3943]
[1644999457939,14.56060336,104.22,104.17,14.3943]
[1644999458133,14.56060336,104.22,104.13,27.8455]
[1644999458333,23.1161,104.21,104.13,51.0821]
[1644999458736,23.1161,104.21,104.17,5.0]
[1644999458934,120.5861,104.21,104.17,5.0]
[1644999459134,97.47,104.21,104.13,46.0821]
[1644999459335,14.4023,104.19,104.13,46.0821]
[1644999459532,14.4023,104.19,104.08,28.5433]
[1644999459735,24.4976,104.18,104.09,22.7339]
[1644999460336,14.4043,104.17,104.11,14.4058]
[1644999460535,16.55758862,104.21,104.11,111.8758]
[1644999460735,2.88129198,104.22,104.17,100.0]
[1644999460934,0.16370336,104.22,104.17,100.0]
[1644999462839,14.4002,104.2,104.17,100.0]
[1644999463038,2.37351345,104.19,104.17,100.0]
[1644999463937,16.77471345,104.19,104.17,100.0]
[1644999465241,14.4012,104.19,104.17,100.0]
[1644999465443,0.16370336,104.22,104.18,0.65868651]
[1644999466944,14.3994,104.21,104.18,0.65868651]
[1644999467144,2.37351345,104.2,104.18,0.65868651]
[1644999468844,16.77331345,104.2,104.18,0.65868651]
[1644999469643,2.37351345,104.2,104.18,0.65868651]
[1644999470044,1.3605439,104.21,104.18,0.65868651]
[1644999470754,1.52424726,104.22,104.18,15.05478651]
[1644999473447,0.16370336,104.22,104.18,15.05478651]
[1644999480552,1.52424726,104.22,104.18,0.65868651]
[1644999480752,1.3605439,104.21,104.18,0.65868651]
[1644999481159,2.37351345,104.2,104.18,0.65868651]
[1644999481355,1.3605439,104.21,104.18,0.65868651]
[1644999481556,15.7596439,104.21,104.18,0.65868651]
[1644999482352,2.37351345,104.2,104.18,0.65868651]
[1644999482553,16.77321345,104.2,104.17,100.0]
[1644999483656,16.77321345,104.2,104.17,114.6911]
[1644999483856,2.37351345,104.2,104.18,0.65868651]
[1644999484057,2.37351345,104.19,104.18,0.65868651]
[1644999484258,2.37351345,104.19,104.17,129.0891]
[1644999485857,25.86614726,104.22,104.18,15.05498651]
[1644999486658,1.52424726,104.22,104.18,15.05498651]
[1644999486957,0.16370336,104.22,104.18,15.05498651]
[1644999491989,0.16370336,104.22,104.18,0.65868651]
[1644999492192,1.52424726,104.22,104.17,114.6911]
[1644999492592,1.3605439,104.22,104.17,114.6911]
[1644999492789,1.92610882,104.22,104.17,114.6911]
[1644999492991,4.05319768,104.22,104.17,114.6911]
[1644999493191,1.3605439,104.21,104.17,114.6911]
[1644999493391,14.3996,104.2,104.17,114.6911]
[1644999493590,2.37351345,104.19,104.17,114.6911]
[1644999495293,16.77431345,104.19,104.17,114.6911]
[1644999495592,19.12293519,104.19,104.17,114.6911]
[1644999496298,19.12293519,104.19,104.17,100.0]
[1644999497496,4.72213519,104.19,104.17,100.0]
[1644999498094,4.72213519,104.19,104.18,0.65868651]
[1644999498295,4.72213519,104.19,104.17,100.0]
[1644999500601,19.12283519,104.19,104.17,100.0]
[1644999504311,116.59283519,104.19,104.17,100.0]
[1644999504505,117.95337909,104.19,104.17,100.0]
[1644999504805,35.38336774,104.19,104.08,113.5]
[1644999505005,1.36022234,104.18,104.09,23.0856]
[1644999505207,14.4075,104.16,104.09,37.4935]
[1644999505408,118.9635,104.16,104.09,23.0856]
[1644999505808,124.82154657,104.16,104.07,23.8451]
[1644999506812,14.4123,104.13,104.07,23.8451]
[1644999507614,14.85681174,104.13,104.07,23.8451]
[1644999507810,15.86931038,104.13,104.07,23.8451]
[1644999511015,15.86931038,104.13,104.06,37.702]
[1644999511215,15.86931038,104.13,104.06,23.2905]
[1644999511619,29.70931038,104.13,104.03,113.5]
[1644999511814,52.55371038,104.13,104.04,24.948]
[1644999512915,52.55371038,104.13,104.04,39.3622]
[1644999513118,38.71371038,104.13,104.04,39.3622]
[1644999514221,15.86931038,104.13,104.04,139.22936082]
[1644999514418,15.86931038,104.13,104.04,154.64235458]
[1644999514822,15.86931038,104.13,104.04,57.17235458]
[1644999516046,15.86931038,104.13,104.04,55.02519376]
[1644999522927,15.86931038,104.13,104.04,53.7481]
[1644999523327,15.86931038,104.13,104.04,39.3622]
[1644999523552,127.17931038,104.13,104.04,39.3622]
[1644999526830,29.70931038,104.13,104.04,39.3622]
[1644999527730,29.70931038,104.13,104.04,54.0846]
[1644999529937,15.86931038,104.13,104.04,54.0846]
[1644999535271,31.06953272,104.13,104.04,39.3622]
[1644999535671,128.53953272,104.13,104.04,39.3622]
[1644999536169,1.36022234,104.12,104.04,39.3622]
[1644999536570,14.4154,104.1,104.04,39.3622]
[1644999536772,14.4154,104.1,104.04,24.948]
[1644999536970,15.87241038,104.1,104.04,24.948]
[1644999538172,15.87241038,104.1,104.04,39.3632]
[1644999540475,15.87241038,104.1,104.04,24.948]
[1644999540875,113.34241038,104.1,104.02,23.6836]
[1644999541075,113.34241038,104.1,104.02,47.1765]
[1644999541875,113.34241038,104.1,104.02,61.5947]
[1644999542374,15.87241038,104.1,104.02,61.5947]
[1644999543573,113.34241038,104.1,104.02,61.5947]
[1644999543774,15.87241038,104.1,104.02,61.5947]
[1644999551981,1.45701038,104.1,104.02,167.17986082]
[1644999552282,1.45701038,104.1,104.05,14.4096]
[1644999552479,1.45701038,104.1,104.05,37.3597]
[1644999552681,1.45701038,104.1,104.06,2.14716082]
[1644999552880,1.45701038,104.1,104.06,9.05116082]
[1644999553781,1.45701038,104.1,104.07,14.4095]
[1644999553979,1.45701038,104.1,104.08,0.65868651]
[1644999554181,2.37351345,104.09,104.08,0.65868651]
[1644999554581,1.45701038,104.1,104.08,0.65868651]
[1644999554782,1.45701038,104.1,104.08,15.06798651]
[1644999559687,1.45701038,104.1,104.08,0.65868651]
[1644999571124,1.45701038,104.1,104.08,15.06918651]
[1644999573525,1.45701038,104.1,104.08,0.65868651]
[1644999575929,15.87081038,104.1,104.08,0.65868651]
[1644999577230,1.45701038,104.1,104.08,0.65868651]
[1644999579533,2.37351345,104.09,104.08,0.65868651]
[1644999579734,1.45701038,104.1,104.08,0.65868651]
[1644999581239,2.37351345,104.09,104.08,0.65868651]
[1644999581937,2.37351345,104.09,104.07,14.4117]
[1644999582139,2.37351345,104.09,104.08,0.65868651]
[1644999582344,3.83052383,104.09,104.08,0.65868651]
[1644999582838,1.45701038,104.09,104.08,0.65868651]
[1644999584039,3.83052383,104.09,104.07,14.4117]
[1644999584641,3.83052383,104.09,104.06,22.5122]
[1644999584843,3.83052383,104.09,104.03,65.97650271]
[1644999585041,3.83052383,104.09,104.03,72.29314189]
[1644999585242,3.83052383,104.09,104.03,70.9628]
[1644999586542,18.24552383,104.09,104.04,14.4158]
[1644999592972,3.83052383,104.09,104.04,14.4158]
[1644999593976,3.83052383,104.09,104.04,18.3322972]
[1644999594880,18.24512383,104.09,104.04,18.3322972]
[1644999596281,3.83052383,104.09,104.04,18.3322972]
[1644999600192,1.45701038,104.09,104.04,18.3322972]
[1644999600391,1.45701038,104.09,104.04,20.47945802]
[1644999600591,1.45701038,104.09,104.04,116.77945802]
[1644999600991,1.45701038,104.09,104.05,118.5866]
[1644999601199,1.36022234,104.14,104.06,110.458]
[1644999601397,1.36022234,104.14,104.07,22.5366]
[1644999601594,1.62896452,104.15,104.07,24.68376082]
[1644999601891,0.26874218,104.15,104.08,2.14716082]
[1644999602091,0.26874218,104.15,104.08,2.39716082]
[1644999602794,0.26874218,104.15,104.09,14.4055]
[1644999603393,0.26874218,104.15,104.09,16.55266082]
[1644999603593,0.26874218,104.15,104.09,41.49246082]
[1644999605095,0.26874218,104.15,104.09,41.74246082]
[1644999605497,0.26874218,104.15,104.09,137.79246082]
[1644999607195,0.26874218,104.15,104.09,152.27086082]
[1644999607801,1.08014448,104.18,104.11,96.05]
[1644999607999,1.36022234,104.2,104.14,177.05]
[1644999608203,0.27850534,104.22,104.14,182.393]
[1644999608399,0.27850534,104.22,104.15,121.64781964]
[1644999608799,0.27850534,104.22,104.16,15.98171964]
[1644999609000,0.27850534,104.22,104.17,23.4561]
[1644999609201,0.27850534,104.22,104.17,25.59781964]
[1644999609825,0.27850534,104.22,104.18,14.3933]
[1644999613630,0.27850534,104.22,104.2,3.9164972]
[1644999614032,0.27850534,104.22,104.21,0.65868651]
[1644999616340,0.27850534,104.22,104.21,2.80040615]
[1644999616536,0.27850534,104.22,104.21,17.19080615]
[1644999616736,0.27850534,104.22,104.21,40.96130615]
[1644999617353,0.55701068,104.26,104.22,96.05]
[1644999617543,0.55701068,104.26,104.23,110.4344]
[1644999617742,2.574e-05,104.27,104.23,126.41611964]
[1644999617942,0.4242237,104.3,104.24,2.80040615]
[1644999618544,0.4242237,104.3,104.25,2.14171964]
[1644999619142,0.4242237,104.3,104.25,112.57281964]
[1644999619546,0.4242237,104.3,104.26,2.14171964]
[1644999620149,0.4242237,104.3,104.27,14.3782]
[1644999620346,0.4242237,104.3,104.28,0.65868651]
[1644999620548,2.37351345,104.29,104.24,22.6168]
[1644999620749,2.37351345,104.29,104.21,24.7292]
[1644999621247,2.37351345,104.29,104.21,39.1178]
[1644999622047,2.37351345,104.29,104.2,3.9164972]
[1644999622749,2.37351345,104.29,104.2,20.44921684]
[1644999622947,2.37351345,104.29,104.2,44.37461684]
[1644999624352,2.37351345,104.29,104.2,140.42461684]
[1644999624855,2.37351345,104.29,104.2,136.50811964]
[1644999626454,2.37351345,104.29,104.23,14.3842]
[1644999626853,2.37351345,104.29,104.23,16.52591964]
[1644999633580,2.37351345,104.29,104.23,14.3842]
[1644999639200,3.73373579,104.29,104.23,14.3842]
[1644999643502,1.36022234,104.28,104.23,14.3842]
[1644999643699,1.36022234,104.28,104.22,23.1572]
[1644999643902,1.36022234,104.27,104.21,14.3898]
[1644999645205,15.75172234,104.27,104.2,37.2518]
[1644999645401,1.36022234,104.26,104.2,37.2518]
[1644999645601,1.36022234,104.26,104.2,51.9408]
[1644999646904,15.75302234,104.26,104.2,51.9408]
[1644999648507,1.36022234,104.26,104.2,54.08251964]
[1644999648703,1.36022234,104.28,104.2,179.3855134]
[1644999648905,1.36022234,104.28,104.2,195.23838802]
[1644999649104,0.4242237,104.3,104.2,195.23838802]
[1644999649105,1.36022234,104.29,104.2,195.23838802]
[1644999649508,1.36022234,104.28,104.2,195.23838802]
[1644999651105,1.36022234,104.28,104.2,205.07212884]
[1644999652010,1.36022234,104.28,104.2,212.65993144]
[1644999653106,1.36022234,104.29,104.2,197.05705682]
[1644999653309,1.78444604,104.3,104.2,197.05705682]
[1644999653607,1.78444604,104.3,104.25,3.9164972]
[1644999654910,1.36022234,104.29,104.25,3.9164972]
[1644999655812,1.36022234,104.29,104.26,14.3831]
[1644999656209,1.36022234,104.29,104.27,0.65868651]
[1644999656410,2.37351345,104.28,104.27,0.65868651]
[1644999656611,1.36022234,104.29,104.27,0.65868651]
[1644999656909,1.78444604,104.3,104.27,0.65868651]
[1644999657812,2.37351345,104.29,104.27,0.65868651]
[1644999658009,3.73373579,104.29,104.27,0.65868651]
[1644999658209,3.73373579,104.29,104.26,14.3846]
[1644999659112,2.37351345,104.29,104.26,14.3846]
[1644999659615,2.37351345,104.29,104.27,0.65868651]
[1644999660216,2.37351345,104.29,104.26,14.3846]
[1644999661217,2.37351345,104.29,104.27,0.65868651]
[1644999661418,2.37351345,104.29,104.28,14.3819]
[1644999661716,0.4242237,104.3,104.27,0.65868651]
[1644999662939,0.4242237,104.3,104.27,15.04178651]
[1644999665341,2.37351345,104.29,104.27,15.04178651]
[1644999665541,2.37351345,104.29,104.27,14.3831]
[1644999667544,2.37351345,104.29,104.24,23.2814]
[1644999667739,2.37351345,104.29,104.26,14.3846]
[1644999667941,2.37351345,104.29,104.24,23.2814]
[1644999668245,3.73373579,104.29,104.23,22.669]
[1644999668641,1.36022234,104.28,104.23,22.669]
[1644999668842,15.75012234,104.28,104.23,22.669]
[1644999669239,1.36022234,104.28,104.23,22.669]
[1644999669844,1.36022234,104.28,104.23,37.0578]
[1644999671748,15.74902234,104.29,104.23,37.0578]
[1644999672347,1.36022234,104.28,104.23,37.0578]
[1644999672747,15.74902234,104.29,104.23,37.0578]
[1644999672946,1.36022234,104.28,104.23,37.0578]
[1644999673748,15.74942234,104.28,104.23,14.3888]
[1644999674148,1.36022234,104.28,104.23,16.53051964]
[1644999674349,1.36022234,104.29,104.23,16.53051964]
[1644999674949,1.36022234,104.29,104.23,37.6617]
[1644999675252,15.74782234,104.29,104.23,37.6617]
[1644999675451,15.74782234,104.29,104.23,39.80341964]
[1644999677555,1.36022234,104.28,104.23,39.80341964]
[1644999677960,1.36022234,104.28,104.23,37.6617]
[1644999678357,15.74952234,104.28,104.23,37.6617]
[1644999678559,15.74952234,104.28,104.22,14.3905]
[1644999678758,1.36022234,104.27,104.22,14.3905]
[1644999679460,1.36022234,104.28,104.22,14.3905]
[1644999679662,1.36022234,104.28,104.22,16.53221964]
[1644999680764,1.36022234,104.29,104.22,39.93681964]
[1644999682969,15.74782234,104.29,104.22,39.93681964]
[1644999683365,1.36022234,104.29,104.22,39.93681964]
[1644999683967,1.36022234,104.28,104.22,39.93681964]
[1644999685669,15.74912234,104.28,104.22,39.93681964]
[1644999685868,15.74912234,104.28,104.22,37.7951]
[1644999686170,1.36022234,104.27,104.22,14.3905]
[1644999687574,15.75092234,104.27,104.22,14.3905]
[1644999687777,14.3907,104.27,104.22,14.3905]
[1644999688176,1.36022234,104.28,104.22,14.3905]
[1644999688473,1.36022234,104.29,104.22,40.85441964]
[1644999688693,0.86022234,104.29,104.22,40.85441964]
[1644999691197,34.62154884,104.3,104.23,45.0]
[1644999691399,34.62154884,104.3,104.25,14.3863]
[1644999692601,34.62154884,104.3,104.24,14.388]
[1644999697004,14.3864,104.3,104.24,14.388]
[1644999697204,14.91779908,104.31,104.24,16.52971964]
[1644999697404,0.53309908,104.31,104.24,46.99881964]
[1644999699208,0.53309908,104.31,104.24,143.04881964]
[1644999699407,0.53309908,104.31,104.24,143.29881964]
[1644999700413,0.53309908,104.31,104.24,172.5518134]
[1644999700813,0.53309908,104.31,104.24,188.40468802]
[1644999702412,0.53309908,104.31,104.24,172.5518134]
[1644999704718,0.53309908,104.31,104.24,166.2668134]
[1644999704916,0.53309908,104.31,104.24,69.9668134]
[1644999705718,0.53309908,104.31,104.24,166.0168134]
[1644999705916,0.53309908,104.31,104.24,166.2668134]
[1644999707617,0.53309908,104.31,104.24,54.80381964]
[1644999708520,0.53309908,104.31,104.24,166.2668134]
[1644999708722,0.53309908,104.31,104.24,182.11968802]
[1644999710019,0.53309908,104.31,104.24,166.2668134]
[1644999712525,0.53309908,104.31,104.24,166.0168134]
[1644999712732,0.53309908,104.31,104.24,38.5721]
[1644999713126,14.91769908,104.31,104.24,38.5721]
[1644999713431,22.24269908,104.31,104.24,38.5721]
[1644999713831,14.91769908,104.31,104.24,38.5721]